Cogmind - Beta 13 @@@ ROGUE MODE // 2024.04.05 @ 16:17:23 Player: Olafz Result: Destroyed by as-67679 with Assembled Blade Performance ------------- Evolutions (0) 0 Regions Visited (2) 400 Robots Destroyed (19) 95 Value Destroyed (585) 585 Prototype IDs (0) 0 Alien Tech Used (0) 0 Bonus (0) 0 TOTAL SCORE: 1080 Bonus ------- None Cogmind --------- Core Integrity 0/250 Matter 300/300 Energy 250/250 System Corruption 9% Temperature Cool (20) Movement Walking (120) Location -10/Mines Parts ------- > --- POWER (1) -------- Ion Engine > --- PROPULSION (2) --- Aluminum Leg Aluminum Leg > --- UTILITY (2) ------ Small Storage Unit > --- WEAPON (2) ------- (None) > --- INVENTORY (8) ---- Ion Engine Aluminum Leg Aluminum Leg Aluminum Leg Aluminum Leg Peak State ------------ > --- POWER ------------ Light Ion Engine > --- PROPULSION ------- Aluminum Leg Aluminum Leg > --- UTILITY ---------- Small Storage Unit > --- WEAPON ----------- Light Assault Rifle Light Assault Rifle > --- INVENTORY -------- Light Ion Engine [Rating: 6] Favorites ----------- Power Light Ion Engine Engine Light Ion Engine Propulsion Aluminum Leg Leg Aluminum Leg Hover Unit Hover Unit Utility Small Storage Unit Device Heat Sink Storage Small Storage Unit Weapon Light Assault Rifle Ballistic Gun Light Assault Rifle Launcher Grenade Launcher Build | -11 -10 -10 ------- Run | Yrd Mat Min Slots Evolved . | . . . Power . | . . . Propulsion . | . . . Utility . | . . . Weapon . | . . . Parts Attached 21 | 6 12 3 Power 3 | 1 2 . Engine 3 | 1 2 . Core . | . . . Reactor . | . . . Propulsion 11 | 2 7 2 Treads . | . . . Leg 9 | 2 5 2 Wheel . | . . . Hover 2 | . 2 . Flight . | . . . Utility 3 | 1 1 1 Device 2 | . 1 1 Storage 1 | 1 . . Processor . | . . . Hackware . | . . . Protection . | . . . Artifact . | . . . Weapon 4 | 2 2 . Energy Gun . | . . . Energy Cannon . | . . . Ballistic Gun 3 | 2 1 . Ballistic Cannon . | . . . Launcher 1 | . 1 . Special Weapon . | . . . Impact Weapon . | . . . Slashing Weapon . | . . . Piercing Weapon . | . . . Special Melee Weapon . | . . . Unidentified Prototypes . | . . . Parts Lost 10 | . 6 4 Power 2 | . 2 . Propulsion 3 | . 2 1 Utility 2 | . . 2 Weapon 3 | . 2 1 Highest Loss Streak 4 | . 4 3 To Critical Strikes . | . . . Average Slot Usage (%) 75 | . 75 73 Engine 11 | . 11 14 Leg 22 | . 22 25 Hover 4 | . 4 . Device 1 | . . 7 Storage 14 | . 14 14 Ballistic Gun 15 | . 15 11 Launcher 4 | . 5 . Naked Turns . | . . . Heaviest Build 12 | 10 12 12 Greatest Support 20 | 20 20 20 Greatest Overweight (x) 1 | 1 1 . Average Overweight (x) . | . . . Largest Inventory Capacity 8 | 8 8 8 Average Capacity 7 | 6 8 8 Most Carried 6 | 1 6 6 Average Carried 3 | . 3 5 Final Capacity 8 | 8 8 8 Final Carried 6 | 1 6 5 Class Distribution -------------------- 88% | Mutant 11% | Scavenger-Mutant Dominant Class ---------------- Mutant | -10/Materials Mutant | -10/Mines Resources | -11 -10 -10 ----------- Run | Yrd Mat Min Matter Collected 632 | 196 402 34 Remotely . | . . . Salvage Created 676 | . 676 . Parts 31 | . 31 . Haulers Intercepted . | . . . Recyclers Shooed 3 | . 3 . Parts Field Recycled . | . . . Retrieved Matter . | . . . Parts Self-Destructed . | . . . Prevented . | . . . Kills | -11 -10 -10 ------- Run | Yrd Mat Min Combat Hostiles Destroyed 14 | . 14 . Guns 8 | . 8 . AOE 6 | . 6 . Classes Destroyed 4 | . 4 . Recycler 2 | . 2 . Operator 1 | . 1 . Watcher 2 | . 2 . Grunt 14 | . 14 . Best Kill Streak 5 | . 5 . Combat Bots Only 4 | . 4 . Max Kills in Single Turn 2 | . 2 . Gunslinging . | . . . Exploded 2 | . 2 . Melee . | . . . Uniques/NPCs Destroyed . | . . . Combat | -11 -10 -10 -------- Run | Yrd Mat Min Hostile Shots Fired 105 | . 62 43 Missed 42 | . 26 16 Damage Taken 1178 | . 562 616 Core 270 | . 71 199 Absorbed by Shields . | . . . Core Remaining (%) 100 | 100 . . Volleys Fired 87 | . 82 5 Largest 2 | . 2 1 Hottest 50 | . 50 20 Shots Fired 112 | . 107 5 Gun 95 | . 90 5 Cannon . | . . . Launcher 17 | . 17 . Special . | . . . Kinetic 95 | . 90 5 Thermal . | . . . Explosive 17 | . 17 . Electromagnetic . | . . . Robot Hit Streak 8 | . 8 4 Robot Miss Streak 4 | . 4 1 Penetration Max . | . . . Secondary Targets 1 | . 1 . Max Gunslinging Chain 1 | . 1 . Shots Hit Robots 67 | . 64 3 Core Hits 45 | . 42 3 Critical Kills 1 | . 1 . Critical Parts Destroyed 1 | . 1 . Critical Strikes 2 | . 2 . Destroy 2 | . 2 . Melee Attacks . | . . . Impact . | . . . Slashing . | . . . Piercing . | . . . Sneak Attacks . | . . . Combat Hostiles . | . . . Follow-up Attacks . | . . . Damage Inflicted 1234 | . 1203 31 Guns 509 | . 485 24 Cannons . | . . . Explosions 702 | . 702 . Melee . | . . . Ramming 23 | . 16 7 Kinetic 509 | . 485 24 Thermal . | . . . Explosive 702 | . 702 . Electromagnetic . | . . . Impact . | . . . Slashing . | . . . Piercing . | . . . Highest Corruption 9 | . . 9 Average Corruption 4 | . . 4 Corruption Purged . | . . . Corruption Blocked . | . . . Effects 2 | . . 2 Message Errors 1 | . . 1 Matter Fused 1 | . . 1 Overload Shots . | . . . Overflow Damage 28 | . 28 . Projectiles . | . . . Explosions 28 | . 28 . Melee . | . . . Knockbacks . | . . . Impact . | . . . Kinetic . | . . . Secondary . | . . . Self-Inflicted Damage 109 | . 109 . Shots 5 | . 5 . Rammed 1 | . 1 . Targets Rammed 6 | . 3 3 Kicked 5 | . 2 3 Crushed . | . . . Highest Temperature 24 | . 24 2 Average Temperature 6 | . 6 2 Received Heat Transfer 354 | . 234 120 Siege Activations . | . . . Robots Corrupted . | . . . Combat Hostiles . | . . . Parts Fried . | . . . Impact Corruptions . | . . . Robots Melted . | . . . Combat Hostiles . | . . . Parts Melted . | . . . Heat Transferred . | . . . Parts Sabotaged . | . . . Parts Stolen . | . . . Parts Stripped . | . . . Power Chain Reactions . | . . . Alert | -11 -10 -10 ------- Run | Yrd Mat Min Peak Influence 403 | . 403 123 Initial 108 | . . 108 Average 217 | . 252 110 Maximum Alert Level 2 | . 2 . Low Security (%) 32 | 100 17 100 Level 1 63 | . 78 . Level 2 3 | . 4 . Level 3 . | . . . Level 4 . | . . . Level 5 . | . . . High Security . | . . . Max Security . | . . . Squads Dispatched 6 | . 6 . Investigation 4 | . 4 . Extermination . | . . . Reinforcement 2 | . 2 . Assault . | . . . Garrison . | . . . Intercept . | . . . Searches Triggered . | . . . Construction Impeded . | . . . Haulers Reinforced . | . . . Active Scanning Responses . | . . . Cargo Convoy Interrupts . | . . . Stealth | -11 -10 -10 --------- Run | Yrd Mat Min Distress Signals . | . . . Communications Jammed . | . . . Distress Signals . | . . . Times Spotted 38 | . 23 15 Peak Tracking Total 14 | . 4 14 Tactical Retreats 2 | . 1 1 Traps | -11 -10 -10 ------- Run | Yrd Mat Min Traps Triggered 2 | . 2 . Indirectly . | . . . Trap Hack Attempts . | . . . Triggered . | . . . Disarmed . | . . . Reprogrammed . | . . . Reused . | . . . Traps Extracted . | . . . Installed . | . . . Triggered . | . . . Machines | -11 -10 -10 ---------- Run | Yrd Mat Min Machines Disabled 1 | . 1 . Max in Single Turn 1 | . 1 . Machines Repaired . | . . . Machines Dismantled . | . . . Machines Sabotaged . | . . . Overloaded Fab Kills . | . . . Hacking | -11 -10 -10 --------- Run | Yrd Mat Min Machines Accessed 4 | . 4 . Terminals 3 | . 3 . Fabricators . | . . . Repair Stations . | . . . Recycling Units 1 | . 1 . Scanalyzers . | . . . Garrison Access . | . . . Total Hacks 12 | . 12 . Successful 6 | . 6 . Failed 6 | . 6 . Catastrophic 1 | . 1 . Database Lockouts . | . . . Manual 7 | . 7 . Terminals 9 | . 9 . Fabricators . | . . . Repair Stations . | . . . Recycling Units 3 | . 3 . Scanalyzers . | . . . Garrison Access . | . . . Terminal Hacks 4 | . 4 . Record 1 | . 1 . Branch Access Points 1 | . 1 . Emergency Access Points 1 | . 1 . Zone Layout 1 | . 1 . Fabricator Hacks . | . . . Repair Station Hacks . | . . . Recycling Unit Hacks 1 | . 1 . Retrieve Components 1 | . 1 . Scanalyzer . | . . . Garrison Access Hacks . | . . . Unauthorized Hacks 1 | . 1 . Terminals . | . . . Fabricators . | . . . Repair Stations . | . . . Recycling Units 1 | . 1 . Tunnel 1 | . 1 . Scanalyzers . | . . . Garrison Access . | . . . Data Cores Recovered . | . . . Used . | . . . Hacking Detections 3 | . 3 . Full Trace Events 2 | . 2 . Feedback Events . | . . . Feedback Blocked . | . . . Robot Schematics Acquired . | . . . Robots Built . | . . . Authchips . | . . . Time . | . . . Total Robot Build Rating . | . . . Part Schematics Acquired . | . . . Parts Built . | . . . Authchips . | . . . Time . | . . . Total Part Build Rating . | . . . Parts Repaired . | . . . Time . | . . . Parts Recycled . | . . . Recycled Matter . | . . . Retrieved Matter . | . . . Retrieved Components 2 | . 2 . Parts Scanalyzed . | . . . Part Schematics Acquired . | . . . Parts Damaged . | . . . Bothacking | -11 -10 -10 ------------ Run | Yrd Mat Min Used RIF Installer . | . . . Robots Hacked . | . . . Non-combat . | . . . Combat . | . . . Robot Hacks Applied . | . . . Relay Couplers Released . | . . . Fabnet Peak Effective % . | . . . Robots Rewired . | . . . Allies Hacked . | . . . Hacks Repelled . | . . . Allies | -11 -10 -10 -------- Run | Yrd Mat Min Total Allies . | . . . Largest Group . | . . . Highest-Rated Group . | . . . Highest-Rated Ally . | . . . Total Orders . | . . . Ally Attacks . | . . . Total Damage . | . . . Kills . | . . . Allies Corrupted . | . . . Allies Melted . | . . . Intel | -11 -10 -10 ------- Run | Yrd Mat Min Robot Analysis Total . | . . . Derelict Logs Recovered . | . . . Drone Launches . | . . . Drone Recoveries . | . . . Exploration | -11 -10 -10 ------------- Run | Yrd Mat Min Turns Passed 656 | 55 537 64 Spaces Moved 401 | 42 319 40 Core 11 | 11 . . Treads . | . . . Legs 314 | 31 243 40 Wheels . | . . . Hover 76 | . 76 . Flight . | . . . Fastest Speed 50 | 50 56 120 Average Speed 108 | 110 106 120 Slowest Speed 120 | 120 120 120 Overloaded Moves . | . . . Propulsion Burnouts . | . . . Robots Hopped . | . . . Cave-ins Triggered . | . . . Exploration Rate (%) 26 | 3 60 17 Regions Visited 2 Branch Regions 1 Pre-discovered Areas 1 | . 1 . Known Exits Taken 1 | . 1 . Unknown Exits Taken 1 | 1 . . Scrap Searched 1 | . . 1 Spaces Dug . | . . . Terrain Destroyed 83 | . 83 . Melee . | . . . Projectile . | . . . AOE 83 | . 83 . Terrain Rammed . | . . . Walls Destroyed . | . . . Machines Disabled . | . . . Actions | -11 -10 -10 --------- Run | Yrd Mat Min Total 523 | 48 424 51 Wait . | . . . Move 399 | 41 318 40 Hop . | . . . Pick Up 5 | 1 4 . Fast Attach 13 | 6 6 1 Attach 4 | . 3 1 Detach 3 | . 3 . Swap 4 | . 3 1 Drop 2 | . 2 . Fire 87 | . 82 5 Melee . | . . . Ram 1 | . 1 . Kick 5 | . 2 3 Crush . | . . . Escape Stasis . | . . . Rewire . | . . . Trap . | . . . Miscellaneous . | . . . Route ------- -11/Scrapyard -10/Materials (discovered 3 exits: [*Mat] / *Min x2) -10/Mines History --------- Turn | Location | Event 9 | -11/Scrapyard | Discovered new exit (range 16) 56 | -11/Scrapyard | Entered Materials 64 | -10/Materials | Identified exit to Mines 309 | -10/Materials | Build established: Mutant 556 | -10/Materials | Lost 4 parts (1p2n1w) 564 | -10/Materials | Discovered new exit (range 10) 593 | -10/Materials | Entered Mines 594 | -10/Mines | Assembled infested the area 601 | -10/Mines | Met a Derelict bent on vengeance 642 | -10/Mines | Core integrity fell below 50% 652 | -10/Mines | Core integrity fell below 20% 657 | -10/Mines | Destroyed by as-67679 with Assembled Blade Last Messages --------------- 00629_ Searching scrap... 00629_ Found Sensor Array. 00629_ Found Propulsion Shielding. 00629_ Found Lgt. Armor Plating. 00629_ Found 27 Matter. 00630_ Acquired 14 matter. 00633_ Acquired Sensor Array. 00637_ AY1CVD N9N9F>LYH3 VF|VXYZ% 00639_ Knocked back. 00645_ as-17266 sneak attacks. 00645_ T-07 Excavator destroyed. 00647_ Aluminum Leg destroyed. 00648_ Lgt. Assault Rifle destroyed. 00648_ Sensor Array destroyed. 00648_ System corrupted by crushing effect (+3). 00650_ Kicked as-13715 out of the way. 00652_ Acquired 10 matter. 00656_ Kicked as-88132. 00657_ Kicked as-88132 out of the way. Map ----- +----------------------------------------------------+ | ??????????#????## ##????????????? ????????? | | ??????????????## =##??????????????????????? | | ?????????????## !#??????????????????????? | | ?????????????# #??????????????????????? | | ?????????????# ##??????????????????????? | | ?????????????#### #???????????????????????? | | ????????????????# #???????????????????????? | | ????????????????# #???????????????????????? | | ????????????????# #???????????????????????? | | ????????????????# #####???????????????????? | | ????????????????# #???????????????????? | | ????????????????##### #???????????????????? | | ????????????????????# #???????????????????? | | ????????????????????# #???????????????????? | | ??????????????####### #???????????????????? | | ??????????????# #???????????????????? | | ??????????????# ##### #???????????????????? | | ????????????????????# #???????????????????? | | ????????????????????#!#???????????????????? | | ????????????????????#%#???????????????????? | | ???????????????????##!##??????????????????? | | ????????????##????## ##?????????????????? | | ???????????## ### #???###???????????? | | ???????????# aa##### #???????????? | | ???????????# a##aa #???????????? | | ???????????## ### a@aaa##???????????? | | ????????????## #??## a aa###????????????? | | ?????????????####????# ##??????????????? | | ????????????????????# #???????????????? | | ???????????????????# ##???????????????? | | ??????????????????# ##????????????????? | | ??????????????????## ###?????????????????? | | ???????????????????###????????????????????? | | ??????????????????????????????????????????? | | ??????????????????????????????????????????? | | ??????????????????????????????????????????? | | ??????????????????????????????????????????? | | | | | | | | | | | | | | | | | | | | | | | | | | | +----------------------------------------------------+ Best States ------------- Heat Dissipation 35 Energy Generation 10 Energy Capacity 250 Matter Stores 300 Matter Capacity 300 Sight Range 16 Robot Scan Range 14 Terrain Scan Density 10 Evasion (%) 55 Item Schematics ----------------- None Robot Schematics ------------------ None Fabricated ------------ Nothing Alien Tech Used ----------------- None Achievements -------------- None Challenges ------------ None Game ------ Seed CloakingGunDoomcannon Manual? 0 Play Time 00:10:46 Cumulative 21.2 hours Start 2024.04.05 @ 15:51:46 End 2024.04.05 @ 16:17:23 Sessions 1 Manual Loads 0 Difficulty Rogue Special Mode None Game No. 59 Rogue 57 Adventurer 2 Explorer 0 Win Type - Total 0 Types 0/0/0/0/0/0/0/0/0 Lore% 18 Gallery% 23 Achievement% 21 Wizard Run 0 Options --------- Layout 1 ASCII 0 Keyboard 1 Movement Arrows Keybinds 0 Fullscreen 2 Font 24/Smallcaps Map View 50x35 Zoom Use 0% Tactical HUD 1 Map Filters NONE Filters NONE Steam 1 RUN: 5f28b67f-cd6b-4fb5-bc55-2464f40cd36b